[Event "CZE-ch Youth G10-G12-G14 2022"]
[Site "Luhacovice"]
[Date "2022.03.14"]
[Round "4.43"]
[White "Svrchokrylova, Ludmila"]
[Black "Koval, Anna"]
[Result "1/2-1/2"]
[ECO "C50"]
[WhiteElo "1024"]
[BlackElo "1278"]
[Annotator "NA"]
[PlyCount "219"]
[EventDate "2022.03.12"]
[EventType "swiss"]
[EventCountry "CZE"]
[SourceTitle "playchess.com"]
[Source "ChessBase"]
[SourceQuality "1"]
[WhiteTeam "Czech Republic"]
[BlackTeam "Czech Republic"]
[WhiteTeamCountry "CZE"]
[BlackTeamCountry "CZE"]
[TimeControl "40/5400+30:1800+30"]

1. e4 {[%emt 0:01:31]} e5 {[%emt 0:00:01]} 2. Nf3 {[%emt 0:00:38]} Nc6 {[%emt 0:00:13]} 3. Bc4 {[%emt 0:01:14]} Bc5 {[%emt 0:00:03]} 4. Nc3 {[%emt 0:00:15]} d6 {[%emt 0:00:25]} 5. d3 {[%emt 0:00:10]} Bg4 {[%emt 0:00:05]} 6. h3 {[%emt 0:00:29]} Bh5 {[%emt 0:00:03]} 7. g4 {[%emt 0:01:05]} Bg6 {[%emt 0:00:24]} 8. Bg5 {[%emt 0:03:07]} Nf6 {[%emt 0:00:58]} 9. Qd2 {[%emt 0:00:29]} h6 {[%emt 0:00:33]} 10. Be3 {[%emt 0:00:36]} Nd4 {[%emt 0:01:09]} 11. Bxd4 {[%emt 0:05:31]} Bxd4 {[%emt 0:00:25]} 12. O-O-O {[%emt 0:06:43]} Qd7 {[%emt 0:01:04]} 13. Nb5 {[%emt 0:04:46]} Bb6 {[%emt 0:00:56]} 14. Nc3 {[%emt 0:01:38]} O-O-O {[%emt 0:00:32]} 15. Rdg1 {[%emt 0:03:05]} Kb8 {[%emt 0:02:24]} 16. g5 {[%emt 0:05:40]} hxg5 {[%emt 0:00:11]} 17. Nxg5 {[%emt 0:00:17]} Bd4 {[%emt 0:01:13]} 18. Rf1 {[%emt 0:02:26]} Nh5 {[%emt 0:01:44]} 19. Ne2 {[%emt 0:04:53]} f6 {[%emt 0:00:50]} 20. Ne6 {[%emt 0:01:31]} Rde8 {[%emt 0:01:14]} 21. N6xd4 {[%emt 0:00:57]} exd4 {[%emt 0:00:22]} 22. Nxd4 {[%emt 0:00:39]} c6 {[%emt 0:02:14]} 23. f4 {[%emt 0:03:30]} d5 {[%emt 0:01:29]} 24. exd5 {[%emt 0:03:25]} cxd5 {[%emt 0:00:17]} 25. Bb5 {[%emt 0:00:36]} Qd6 {[%emt 0:01:31]} 26. Bxe8 {[%emt 0:00:39]} Rxe8 {[%emt 0:01:13]} 27. Re1 {[%emt 0:01:11]} Rg8 {[%emt 0:01:45]} 28. f5 {[%emt 0:01:36]} Bh7 {[%emt 0:00:35]} 29. c3 {[%emt 0:01:15]} Ng3 {[%emt 0:00:45]} 30. Rhg1 {[%emt 0:01:14]} Nxf5 {[%emt 0:00:31]} 31. Nxf5 {[%emt 0:01:29]} Bxf5 {[%emt 0:00:03]} 32. Qe2 {[%emt 0:01:01]} Bxh3 {[%emt 0:01:00]} 33. Qe7 {[%emt 0:01:23]} Qf4+ {[%emt 0:00:53]} 34. Qe3 {[%emt 0:00:20]} Qf5 {[%emt 0:01:14]} 35. Rh1 {[%emt 0:02:37]} Bg4 {[%emt 0:01:00]} 36. Rhf1 {[%emt 0:01:12]} Qd7 {[%emt 0:01:08]} 37. Rg1 {[%emt 0:02:17]} f5 {[%emt 0:01:14]} 38. Qe6 {[%emt 0:04:17]} Qd8 {[%emt 0:01:31]} 39. Re5 {[%emt 0:03:01]} d4 {[%emt 0:00:55]} 40. Qd5 {[%emt 0:01:20]} Qg5+ {[%emt 0:01:07]} 41. Kc2 {[%emt 0:30:40]} Rd8 {[%emt 0:31:00]} 42. Qg2 {[%emt 0:05:02]} Qf6 {[%emt 0:02:43]} 43. Qg3 {[%emt 0:03:06]} Ka8 {[%emt 0:00:49]} 44. Qe1 {[%emt 0:00:44]} a6 {[%emt 0:01:03]} 45. Re8 {[%emt 0:00:34]} Rxe8 {[%emt 0:01:38]} 46. Qxe8+ {[%emt 0:00:30]} Ka7 {[%emt 0:00:01]} 47. Re1 {[%emt 0:00:30]} Qh4 {[%emt 0:01:30]} 48. Qe5 {[%emt 0:01:24]} Qf2+ {[%emt 0:01:15]} 49. Kb3 {[%emt 0:01:20]} dxc3 {[%emt 0:01:00]} 50. bxc3 {[%emt 0:01:29]} Qb6+ {[%emt 0:00:33]} 51. Kc4 {[%emt 0:02:15]} Qg6 {[%emt 0:02:32]} 52. Qc5+ {[%emt 0:01:01]} Ka8 {[%emt 0:01:27]} 53. Qc8+ {[%emt 0:01:32]} Ka7 {[%emt 0:00:18]} 54. d4 {[%emt 0:04:14]} f4 {[%emt 0:00:42]} 55. Qc5+ {[%emt 0:01:20]} Ka8 {[%emt 0:01:54]} 56. d5 {[%emt 0:01:31]} f3 {[%emt 0:00:46]} 57. Qf8+ {[%emt 0:01:48]} Ka7 {[%emt 0:00:26]} 58. Re8 {[%emt 0:00:27]} b5+ {[%emt 0:04:23]} 59. Kc5 {[%emt 0:00:47]} Qb6+ {[%emt 0:00:35]} 60. Kb4 {[%emt 0:00:42]} Qb7 {[%emt 0:02:02]} 61. Re7 {[%emt 0:01:07]} Bd7 {[%emt 0:00:26]} 62. Qd8 {[%emt 0:01:22]} f2 {[%emt 0:00:50]} 63. Rxd7 {[%emt 0:00:22]} f1=Q {[%emt 0:00:12]} 64. Rxb7+ {[%emt 0:00:33]} Kxb7 {[%emt 0:00:03]} 65. Qd7+ {[%emt 0:00:23]} Kb8 {[%emt 0:00:33]} 66. Qd8+ {[%emt 0:00:18]} Ka7 {[%emt 0:00:55]} 67. Qc7+ {[%emt 0:01:32]} Ka8 {[%emt 0:00:36]} 68. Qc6+ {[%emt 0:00:29]} Kb8 {[%emt 0:00:18]} 69. Qb6+ {[%emt 0:00:27]} Kc8 {[%emt 0:00:21]} 70. Qxa6+ {[%emt 0:00:07]} Kd8 {[%emt 0:00:10]} 71. Qb6+ {[%emt 0:00:25]} Ke7 {[%emt 0:00:09]} 72. d6+ {[%emt 0:00:30]} Kf7 {[%emt 0:00:52]} 73. Qxb5 {[%emt 0:00:31]} Qf4+ {[%emt 0:00:19]} 74. Qc4+ {[%emt 0:00:21]} Qxc4+ {[%emt 0:00:15]} 75. Kxc4 {[%emt 0:00:17]} g5 {[%emt 0:00:07]} 76. Kc5 {[%emt 0:00:28]} g4 {[%emt 0:00:16]} 77. Kc6 {[%emt 0:00:12]} g3 {[%emt 0:00:50]} 78. d7 {[%emt 0:00:05]} g2 {[%emt 0:00:11]} 79. d8=Q {[%emt 0:00:18]} g1=Q {[%emt 0:00:19]} 80. Qd7+ {[%emt 0:00:06]} Kg6 {[%emt 0:00:29]} 81. Qd6+ {[%emt 0:00:13]} Kh7 {[%emt 0:00:35]} 82. Qd3+ {[%emt 0:00:20]} Kh6 {[%emt 0:00:17]} 83. Kb5 {[%emt 0:00:20]} Qg5+ {[%emt 0:00:06]} 84. Kb4 {[%emt 0:00:09]} Qe7+ {[%emt 0:00:15]} 85. Kb3 {[%emt 0:00:17]} Qb7+ {[%emt 0:00:22]} 86. Kc2 {[%emt 0:00:19]} Kg7 {[%emt 0:00:36]} 87. a4 {[%emt 0:00:27]} Qc6 {[%emt 0:00:27]} 88. a5 {[%emt 0:00:13]} Qa4+ {[%emt 0:00:05]} 89. Kd2 {[%emt 0:00:29]} Qxa5 {[%emt 0:00:19]} 90. Qg3+ {[%emt 0:00:10]} Kf6 {[%emt 0:00:14]} 91. Qf3+ {[%emt 0:00:28]} Ke6 {[%emt 0:00:12]} 92. Kd3 {[%emt 0:01:00]} Qd8+ {[%emt 0:00:35]} 93. Ke3 {[%emt 0:00:31]} Qb6+ {[%emt 0:00:40]} 94. Kd2 {[%emt 0:01:03]} Qd6+ {[%emt 0:00:12]} 95. Qd3 {[%emt 0:00:19]} Qh2+ {[%emt 0:00:34]} 96. Qe2+ {[%emt 0:00:18]} Qxe2+ {[%emt 0:00:02]} 97. Kxe2 {[%emt 0:00:11]} Kd5 {[%emt 0:00:09]} 98. Kd3 {[%emt 0:00:10]} Kc5 {[%emt 0:00:03]} 99. c4 {[%emt 0:01:02]} Kd6 {[%emt 0:01:50]} 100. Kd4 {[%emt 0:00:11]} Kc6 {[%emt 0:00:03]} 101. c5 {[%emt 0:00:19]} Kb7 {[%emt 0:00:28]} 102. Kd5 {[%emt 0:00:11]} Kc7 {[%emt 0:00:32]} 103. c6 {[%emt 0:00:21]} Kc8 {[%emt 0:00:15]} 104. Kc5 {[%emt 0:01:13]} Kc7 {[%emt 0:00:39]} 105. Kb5 {[%emt 0:00:24]} Kc8 {[%emt 0:00:19]} 106. Kc4 {[%emt 0:01:39]} Kc7 {[%emt 0:00:17]} 107. Kd5 {[%emt 0:00:12]} Kc8 {[%emt 0:00:11]} 108. Kd6 {[%emt 0:01:13]} Kd8 {[%emt 0:00:01]} 109. c7+ {[%emt 0:00:46]} Kc8 {[%emt 0:00:02]} 110. Kc6 {[%emt 0:00:14]} 1/2-1/2

[Event "CZE-ch Youth G10-G12-G14 2022"]
[Site "Luhacovice"]
[Date "2022.03.15"]
[Round "5.1"]
[White "Vancakova, Veronika"]
[Black "Janouskova, Eliska"]
[Result "0-1"]
[ECO "A85"]
[WhiteElo "1300"]
[BlackElo "1167"]
[Annotator "NA"]
[PlyCount "110"]
[EventDate "2022.03.12"]
[EventType "swiss"]
[EventCountry "CZE"]
[SourceTitle "playchess.com"]
[Source "ChessBase"]
[SourceQuality "1"]
[TimeControl "40/5400+30:1800+30"]

1. d4 {[%emt 0:00:03]} e6 {[%emt 0:00:14]} 2. c4 {[%emt 0:00:05]} f5 {[%emt 0:00:21]} 3. Nc3 {[%emt 0:00:45]} Nf6 {[%emt 0:00:49]} 4. Nf3 {[%emt 0:08:48]} b6 {[%emt 0:01:57]} 5. e3 {[%emt 0:00:38]} Bb7 {[%emt 0:02:21]} 6. Bd3 {[%emt 0:02:18]} Bb4 {[%emt 0:01:25]} 7. Bd2 {[%emt 0:03:31]} Bxc3 {[%emt 0:03:13]} 8. Bxc3 {[%emt 0:00:35]} O-O {[%emt 0:01:17]} 9. O-O {[%emt 0:00:22]} d6 {[%emt 0:01:53]} 10. Re1 {[%emt 0:07:41]} Ne4 {[%emt 0:02:16]} 11. Rc1 {[%emt 0:01:19]} Nd7 {[%emt 0:01:48]} 12. Nd2 {[%emt 0:06:19]} Ndf6 {[%emt 0:01:57]} 13. f3 {[%emt 0:01:37]} Nxc3 {[%emt 0:03:34]} 14. Rxc3 {[%emt 0:01:10]} Kh8 {[%emt 0:04:49]} 15. e4 {[%emt 0:06:22]} fxe4 {[%emt 0:04:59]} 16. fxe4 {[%emt 0:00:22]} e5 {[%emt 0:01:17]} 17. d5 {[%emt 0:02:02]} Qe7 {[%emt 0:02:37]} 18. Qe2 {[%emt 0:02:03]} Rae8 {[%emt 0:02:40]} 19. Bc2 {[%emt 0:01:57]} Qf7 {[%emt 0:03:16]} 20. Rf1 {[%emt 0:02:35]} Qg6 {[%emt 0:01:24]} 21. b4 {[%emt 0:05:46]} a6 {[%emt 0:06:51]} 22. Ba4 {[%emt 0:07:01]} Re7 {[%emt 0:04:42]} 23. c5 {[%emt 0:03:04]} bxc5 {[%emt 0:02:26]} 24. bxc5 {[%emt 0:00:18]} Ref7 {[%emt 0:02:42]} 25. c6 {[%emt 0:08:35]} Bc8 {[%emt 0:00:41]} 26. h3 {[%emt 0:02:24]} Nh5 {[%emt 0:03:29]} 27. Rxf7 {[%emt 0:11:06]} Rxf7 {[%emt 0:00:39]} 28. g4 {[%emt 0:12:44]} Nf4 {[%emt 0:03:05]} 29. Qh2 {[%emt 0:01:50]} Qh6 {[%emt 0:01:44]} 30. Bd1 {[%emt 0:00:45]} Qh4 {[%emt 0:01:38]} 31. Qg3 {[%emt 0:00:57]} Nxh3+ {[%emt 0:01:10]} 32. Qxh3 {[%emt 0:00:26]} Qe1+ {[%emt 0:00:07]} 33. Nf1 {[%emt 0:00:29]} Qxd1 {[%emt 0:00:34]} 34. Re3 {[%emt 0:00:45]} Bxg4 {[%emt 0:00:39]} 35. Qg2 {[%emt 0:00:25]} Rf6 {[%emt 0:03:30]} 36. Rb3 {[%emt 0:00:36]} h6 {[%emt 0:00:29]} 37. Re3 {[%emt 0:00:36]} Rg6 {[%emt 0:03:49]} 38. Rg3 {[%emt 0:00:31]} h5 {[%emt 0:00:40]} 39. Kh2 {[%emt 0:00:25]} h4 {[%emt 0:01:43]} 40. Rxg4 {[%emt 0:00:08]} Qxg4 {[%emt 0:00:25]} 41. Qxg4 {[%emt 0:30:55]} Rxg4 {[%emt 0:30:07]} 42. Nd2 {[%emt 0:00:19]} Rf4 {[%emt 0:00:22]} 43. Kg2 {[%emt 0:00:11]} g5 {[%emt 0:00:11]} 44. Nf3 {[%emt 0:00:56]} h3+ {[%emt 0:00:22]} 45. Kg3 {[%emt 0:00:10]} g4 {[%emt 0:00:16]} 46. Ng5 {[%emt 0:00:09]} Rf1 {[%emt 0:02:07]} 47. Ne6 {[%emt 0:00:36]} Rg1+ {[%emt 0:00:09]} 48. Kh2 {[%emt 0:00:08]} Rg2+ {[%emt 0:01:17]} 49. Kh1 {[%emt 0:00:04]} g3 {[%emt 0:00:33]} 50. Ng5 {[%emt 0:00:24]} Rxa2 {[%emt 0:02:14]} 51. Nxh3 {[%emt 0:00:08]} Kg7 {[%emt 0:01:35]} 52. Ng5 {[%emt 0:00:43]} Rc2 {[%emt 0:02:28]} 53. Nf3 {[%emt 0:01:54]} a5 {[%emt 0:01:38]} 54. Kg1 {[%emt 0:00:04]} Kf6 {[%emt 0:00:44]} 55. Kf1 {[%emt 0:00:19]} Rf2+ {[%emt 0:00:11]} 0-1

[Event "CZE-ch Youth G10-G12-G14 2022"]
[Site "Luhacovice"]
[Date "2022.03.15"]
[Round "5.2"]
[White "Kusova, Nikola"]
[Black "Romanko Diana"]
[Result "1/2-1/2"]
[ECO "B18"]
[WhiteElo "1227"]
[BlackElo "1000"]
[Annotator "NA"]
[PlyCount "76"]
[EventDate "2022.03.12"]
[EventType "swiss"]
[EventCountry "CZE"]
[SourceTitle "playchess.com"]
[Source "ChessBase"]
[SourceQuality "1"]
[TimeControl "40/5400+30:1800+30"]

1. e4 {[%emt 0:00:03]} c6 {[%emt 0:00:12]} 2. d4 {[%emt 0:00:16]} d5 {[%emt 0:00:18]} 3. Nc3 {[%emt 0:00:15]} dxe4 {[%emt 0:02:22]} 4. Nxe4 {[%emt 0:00:36]} Bf5 {[%emt 0:00:16]} 5. Ng3 {[%emt 0:01:12]} Bg6 {[%emt 0:00:29]} 6. Nf3 {[%emt 0:00:43]} h6 {[%emt 0:00:59]} 7. Bd3 {[%emt 0:01:45]} Bxd3 {[%emt 0:00:34]} 8. Qxd3 {[%emt 0:00:33]} Nf6 {[%emt 0:01:21]} 9. O-O {[%emt 0:02:21]} e6 {[%emt 0:01:34]} 10. Bf4 {[%emt 0:04:54]} c5 {[%emt 0:02:45]} 11. Rad1 {[%emt 0:02:09]} Nc6 {[%emt 0:02:51]} 12. Rfe1 {[%emt 0:03:54]} Bd6 {[%emt 0:08:22]} 13. Bxd6 {[%emt 0:04:43]} Qxd6 {[%emt 0:00:51]} 14. Nf5 {[%emt 0:02:54]} Qf8 {[%emt 0:04:29]} 15. Qb5 {[%emt 0:02:22]} O-O-O {[%emt 0:01:58]} 16. Ng3 {[%emt 0:06:19]} cxd4 {[%emt 0:01:55]} 17. Qc4 {[%emt 0:00:40]} Qd6 {[%emt 0:03:57]} 18. Nxd4 {[%emt 0:01:53]} Qb4 {[%emt 0:02:29]} 19. Qxb4 {[%emt 0:01:15]} Nxb4 {[%emt 0:00:12]} 20. a3 {[%emt 0:00:53]} Nbd5 {[%emt 0:01:53]} 21. Ne4 {[%emt 0:05:53]} Nc7 {[%emt 0:06:48]} 22. Nxf6 {[%emt 0:02:46]} gxf6 {[%emt 0:00:36]} 23. c4 {[%emt 0:03:09]} Rd7 {[%emt 0:02:39]} 24. Nc2 {[%emt 0:01:40]} Rhd8 {[%emt 0:00:25]} 25. Rxd7 {[%emt 0:01:24]} Rxd7 {[%emt 0:00:08]} 26. Ne3 {[%emt 0:02:32]} f5 {[%emt 0:02:05]} 27. Rd1 {[%emt 0:00:43]} Rxd1+ {[%emt 0:02:33]} 28. Nxd1 {[%emt 0:02:05]} b5 {[%emt 0:00:30]} 29. b3 {[%emt 0:00:30]} Kd7 {[%emt 0:00:30]} 30. Kf1 {[%emt 0:00:30]} Kd6 {[%emt 0:00:30]} 31. Ke2 {[%emt 0:00:30]} bxc4 {[%emt 0:01:04]} 32. bxc4 {[%emt 0:00:20]} Kc5 {[%emt 0:00:15]} 33. Kd3 {[%emt 0:00:45]} e5 {[%emt 0:00:22]} 34. Nb2 {[%emt 0:01:15]} Ne6 {[%emt 0:01:19]} 35. Na4+ {[%emt 0:00:54]} Kc6 {[%emt 0:00:39]} 36. g3 {[%emt 0:00:46]} a5 {[%emt 0:03:12]} 37. f3 {[%emt 0:01:07]} f6 {[%emt 0:02:02]} 38. g4 {[%emt 0:01:32]} Ng5 {[%emt 0:02:28]} 1/2-1/2

[Event "CZE-ch Youth G10-G12-G14 2022"]
[Site "Luhacovice"]
[Date "2022.03.15"]
[Round "5.3"]
[White "Hujova Tess"]
[Black "Lackova, Lucie"]
[Result "0-1"]
[ECO "C47"]
[WhiteElo "1000"]
[BlackElo "1142"]
[Annotator "NA"]
[PlyCount "55"]
[EventDate "2022.03.12"]
[EventType "swiss"]
[EventCountry "CZE"]
[SourceTitle "playchess.com"]
[Source "ChessBase"]
[SourceQuality "1"]
[TimeControl "40/5400+30:1800+30"]

1. e4 {[%emt 0:00:09]} e5 {[%emt 0:00:04]} 2. Nf3 {[%emt 0:00:46]} Nc6 {[%emt 0:00:06]} 3. d4 {[%emt 0:01:02]} exd4 {[%emt 0:00:07]} 4. Nxd4 {[%emt 0:00:34]} Nf6 {[%emt 0:00:09]} 5. Nc3 {[%emt 0:01:10]} Bb4 {[%emt 0:00:07]} 6. Nxc6 {[%emt 0:03:34]} bxc6 {[%emt 0:00:22]} 7. Qf3 {[%emt 0:04:04]} O-O {[%emt 0:03:36]} 8. Bd2 {[%emt 0:02:20]} Re8 {[%emt 0:01:09]} 9. O-O-O {[%emt 0:02:04]} Bxc3 {[%emt 0:02:00]} 10. Bxc3 {[%emt 0:02:29]} Nxe4 {[%emt 0:00:58]} 11. Bc4 {[%emt 0:01:20]} d5 {[%emt 0:00:34]} 12. Rhf1 {[%emt 0:06:56]} Qg5+ {[%emt 0:05:41]} 13. Kb1 {[%emt 0:02:43]} Bg4 {[%emt 0:08:43]} 14. Qd3 {[%emt 0:00:58]} Bxd1 {[%emt 0:03:58]} 15. f4 {[%emt 0:00:39]} Qxg2 {[%emt 0:05:26]} 16. Rxd1 {[%emt 0:02:47]} dxc4 {[%emt 0:01:42]} 17. Qxc4 {[%emt 0:02:49]} Rad8 {[%emt 0:03:40]} 18. Rc1 {[%emt 0:03:24]} Nd2+ {[%emt 0:07:02]} 19. Bxd2 {[%emt 0:00:32]} Qxd2 {[%emt 0:03:23]} 20. a3 {[%emt 0:00:22]} Re1 {[%emt 0:02:32]} 21. Rxe1 {[%emt 0:00:28]} Qxe1+ {[%emt 0:00:53]} 22. Ka2 {[%emt 0:00:16]} Qe6 {[%emt 0:00:19]} 23. Qxe6 {[%emt 0:00:20]} fxe6 {[%emt 0:00:07]} 24. h3 {[%emt 0:00:57]} g5 {[%emt 0:00:15]} 25. fxg5 {[%emt 0:00:16]} e5 {[%emt 0:00:34]} 26. h4 {[%emt 0:00:23]} e4 {[%emt 0:00:08]} 27. h5 {[%emt 0:00:21]} e3 {[%emt 0:00:13]} 28. h6 {[%emt 0:00:00]} 0-1

[Event "CZE-ch Youth G10-G12-G14 2022"]
[Site "Luhacovice"]
[Date "2022.03.15"]
[Round "5.4"]
[White "Stepankova Linda"]
[Black "Melicharova Veronika"]
[Result "1-0"]
[ECO "B02"]
[WhiteElo "1000"]
[BlackElo "1000"]
[Annotator "NA"]
[PlyCount "77"]
[EventDate "2022.03.12"]
[EventType "swiss"]
[EventCountry "CZE"]
[SourceTitle "playchess.com"]
[Source "ChessBase"]
[SourceQuality "1"]
[TimeControl "40/5400+30:1800+30"]

1. e4 {[%emt 0:00:08]} d5 {[%emt 0:00:09]} 2. exd5 {[%emt 0:00:14]} Nf6 {[%emt 0:00:13]} 3. Nc3 {[%emt 0:02:06]} e5 {[%emt 0:00:47]} 4. Bc4 {[%emt 0:01:19]} Bc5 {[%emt 0:00:40]} 5. d3 {[%emt 0:00:30]} O-O {[%emt 0:02:12]} 6. Nf3 {[%emt 0:01:23]} Bg4 {[%emt 0:00:49]} 7. h3 {[%emt 0:00:55]} Bxf3 {[%emt 0:00:25]} 8. Qxf3 {[%emt 0:08:31]} c6 {[%emt 0:03:46]} 9. Bg5 {[%emt 0:00:30]} Nbd7 {[%emt 0:00:30]} 10. dxc6 {[%emt 0:19:27]} bxc6 {[%emt 0:03:18]} 11. Qxc6 {[%emt 0:01:06]} Rc8 {[%emt 0:02:59]} 12. Qb5 {[%emt 0:04:13]} Nb6 {[%emt 0:04:14]} 13. O-O {[%emt 0:12:06]} h6 {[%emt 0:15:25]} 14. Bh4 {[%emt 0:06:52]} Re8 {[%emt 0:00:30]} 15. Rad1 {[%emt 0:00:30]} Qd7 {[%emt 0:00:30]} 16. Qxd7 {[%emt 0:00:30]} Nfxd7 {[%emt 0:00:30]} 17. Bb5 {[%emt 0:00:30]} g5 {[%emt 0:00:30]} 18. Bg3 {[%emt 0:00:30]} Bd4 {[%emt 0:00:30]} 19. Nd5 {[%emt 0:00:30]} Rcd8 {[%emt 0:00:30]} 20. Bxd7 {[%emt 0:00:30]} Nxd7 {[%emt 0:00:30]} 21. c3 {[%emt 0:00:30]} h5 {[%emt 0:00:30]} 22. cxd4 {[%emt 0:00:30]} h4 {[%emt 0:00:30]} 23. Bxe5 {[%emt 0:00:30]} Re6 {[%emt 0:00:30]} 24. Rfe1 {[%emt 0:00:30]} Nxe5 {[%emt 0:00:30]} 25. Nf6+ {[%emt 0:00:30]} Rxf6 {[%emt 0:00:30]} 26. dxe5 {[%emt 0:00:30]} Rb6 {[%emt 0:00:30]} 27. Rd2 {[%emt 0:00:30]} f5 {[%emt 0:00:30]} 28. exf6 {[%emt 0:00:30]} Rxf6 {[%emt 0:00:30]} 29. Rf1 {[%emt 0:00:30]} a5 {[%emt 0:00:30]} 30. g3 {[%emt 0:00:30]} hxg3 {[%emt 0:00:30]} 31. fxg3 {[%emt 0:00:30]} Rxf1+ {[%emt 0:00:30]} 32. Kxf1 {[%emt 0:00:30]} Rf8+ {[%emt 0:00:30]} 33. Ke2 {[%emt 0:00:30]} a4 {[%emt 0:00:30]} 34. d4 {[%emt 0:00:30]} Re8+ {[%emt 0:00:30]} 35. Kf3 {[%emt 0:00:30]} Kg7 {[%emt 0:00:30]} 36. Re2 {[%emt 0:00:30]} Rf8+ {[%emt 0:00:30]} 37. Kg4 {[%emt 0:00:30]} Kg6 {[%emt 0:00:30]} 38. Re6+ {[%emt 0:00:30]} Kf7 {[%emt 0:00:46]} 39. h4 {[%emt 0:00:00]} 1-0

[Event "CZE-ch Youth G10-G12-G14 2022"]
[Site "Luhacovice"]
[Date "2022.03.15"]
[Round "5.5"]
[White "Koutna Simona"]
[Black "Lickova, Anna"]
[Result "0-1"]
[ECO "C54"]
[WhiteElo "1000"]
[BlackElo "1016"]
[Annotator "NA"]
[PlyCount "32"]
[EventDate "2022.03.12"]
[EventType "swiss"]
[EventCountry "CZE"]
[SourceTitle "playchess.com"]
[Source "ChessBase"]
[SourceQuality "1"]
[TimeControl "40/5400+30:1800+30"]

1. e4 {[%emt 0:00:05]} e5 {[%emt 0:00:06]} 2. Nf3 {[%emt 0:00:08]} Nc6 {[%emt 0:00:24]} 3. Bc4 {[%emt 0:00:12]} Bc5 {[%emt 0:00:15]} 4. c3 {[%emt 0:00:12]} Nf6 {[%emt 0:00:07]} 5. d3 {[%emt 0:00:16]} d6 {[%emt 0:00:23]} 6. b4 {[%emt 0:00:13]} Bb6 {[%emt 0:00:22]} 7. O-O {[%emt 0:00:21]} Be6 {[%emt 0:01:15]} 8. Nbd2 {[%emt 0:01:53]} Qd7 {[%emt 0:02:02]} 9. Bxe6 {[%emt 0:02:46]} Qxe6 {[%emt 0:00:37]} 10. Nb3 {[%emt 0:00:27]} h6 {[%emt 0:01:13]} 11. d4 {[%emt 0:00:27]} Qd7 {[%emt 0:06:50]} 12. Re1 {[%emt 0:00:40]} g5 {[%emt 0:00:47]} 13. Qc2 {[%emt 0:01:43]} g4 {[%emt 0:00:52]} 14. dxe5 {[%emt 0:02:50]} gxf3 {[%emt 0:07:08]} 15. exf6 {[%emt 0:00:18]} Qg4 {[%emt 0:00:13]} 16. h3 {[%emt 0:00:40]} Qxg2# {[%emt 0:00:04]} 0-1

[Event "CZE-ch Youth G10-G12-G14 2022"]
[Site "Luhacovice"]
[Date "2022.03.15"]
[Round "5.6"]
[White "Mazurkova Viktorie"]
[Black "Vanickova Natalie"]
[Result "0-1"]
[ECO "A00"]
[WhiteElo "1000"]
[BlackElo "1000"]
[Annotator "NA"]
[PlyCount "86"]
[EventDate "2022.03.12"]
[EventType "swiss"]
[EventCountry "CZE"]
[SourceTitle "playchess.com"]
[Source "ChessBase"]
[SourceQuality "1"]
[TimeControl "40/5400+30:1800+30"]

1. e4 {[%emt 0:00:02]} d5 {[%emt 0:00:03]} 2. Nc3 {[%emt 0:00:14]} d4 {[%emt 0:00:50]} 3. Nd5 {[%emt 0:00:32]} e6 {[%emt 0:00:27]} 4. Nf4 {[%emt 0:00:41]} e5 {[%emt 0:00:33]} 5. Nfh3 {[%emt 0:00:18]} Nf6 {[%emt 0:00:19]} 6. d3 {[%emt 0:00:21]} Bd6 {[%emt 0:01:04]} 7. Bd2 {[%emt 0:01:06]} O-O {[%emt 0:00:35]} 8. Qe2 {[%emt 0:00:37]} c5 {[%emt 0:00:17]} 9. O-O-O {[%emt 0:00:37]} Be6 {[%emt 0:01:27]} 10. Kb1 {[%emt 0:01:21]} Qb6 {[%emt 0:02:16]} 11. Qe1 {[%emt 0:01:38]} Qa6 {[%emt 0:01:27]} 12. b3 {[%emt 0:01:09]} Nc6 {[%emt 0:03:03]} 13. Kb2 {[%emt 0:03:01]} Nb4 {[%emt 0:01:26]} 14. a4 {[%emt 0:01:55]} b5 {[%emt 0:02:21]} 15. Ra1 {[%emt 0:00:31]} Bd7 {[%emt 0:08:56]} 16. c3 {[%emt 0:02:20]} Nc6 {[%emt 0:03:17]} 17. axb5 {[%emt 0:01:55]} Qxb5 {[%emt 0:01:10]} 18. g3 {[%emt 0:01:08]} Be6 {[%emt 0:01:55]} 19. Ra3 {[%emt 0:01:16]} a5 {[%emt 0:04:17]} 20. Bg5 {[%emt 0:01:55]} a4 {[%emt 0:02:06]} 21. Qd1 {[%emt 0:01:15]} dxc3+ {[%emt 0:01:39]} 22. Kxc3 {[%emt 0:01:18]} Qb4+ {[%emt 0:01:35]} 23. Kb2 {[%emt 0:00:42]} axb3 {[%emt 0:02:47]} 24. Rxb3 {[%emt 0:01:00]} Bxb3 {[%emt 0:00:59]} 25. Qxb3 {[%emt 0:00:15]} Qxb3+ {[%emt 0:00:22]} 26. Kxb3 {[%emt 0:00:10]} Nd4+ {[%emt 0:00:37]} 27. Kc4 {[%emt 0:01:05]} Ra4+ {[%emt 0:01:37]} 28. Kc3 {[%emt 0:00:51]} Nb5+ {[%emt 0:01:28]} 29. Kb3 {[%emt 0:00:32]} Ra3+ {[%emt 0:01:11]} 30. Kc4 {[%emt 0:00:46]} Nc7 {[%emt 0:02:31]} 31. Bc1 {[%emt 0:01:29]} Ra1 {[%emt 0:00:32]} 32. Ne2 {[%emt 0:00:33]} Ra4+ {[%emt 0:04:25]} 33. Kb3 {[%emt 0:00:23]} Rb4+ {[%emt 0:00:41]} 34. Kc3 {[%emt 0:00:26]} Nb5+ {[%emt 0:04:21]} 35. Kc2 {[%emt 0:00:55]} Ra8 {[%emt 0:01:19]} 36. Bd2 {[%emt 0:00:50]} Ra2+ {[%emt 0:01:15]} 37. Kd1 {[%emt 0:00:14]} Rb1+ {[%emt 0:00:35]} 38. Bc1 {[%emt 0:00:19]} Raa1 {[%emt 0:01:55]} 39. f4 {[%emt 0:00:33]} Ng4 {[%emt 0:00:43]} 40. Kd2 {[%emt 0:00:31]} Ra2+ {[%emt 0:00:59]} 41. Ke1 {[%emt 0:30:48]} c4 {[%emt 0:30:52]} 42. dxc4 {[%emt 0:01:19]} Bb4+ {[%emt 0:01:28]} 43. Kd1 {[%emt 0:00:49]} Ne3# {[%emt 0:00:23]} 0-1

[Event "CZE-ch Youth G10-G12-G14 2022"]
[Site "Luhacovice"]
[Date "2022.03.15"]
[Round "5.7"]
[White "Silhankova Simona"]
[Black "Ramseier, Jana S."]
[Result "1-0"]
[ECO "C50"]
[WhiteElo "1000"]
[BlackElo "2090"]
[Annotator "ChessBase"]
[PlyCount "26"]
[EventDate "2022.03.12"]
[EventType "swiss"]
[EventCountry "CZE"]
[SourceTitle "playchess.com"]
[Source "ChessBase"]
[SourceQuality "1"]
[TimeControl "40/5400+30:1800+30"]

1. e4 {[%emt 0:00:07]} e5 {[%emt 0:00:06]} 2. Nf3 {[%emt 0:00:13]} Nc6 {[%emt 0:00:22]} 3. Bc4 {[%emt 0:00:19]} Bc5 {[%emt 0:00:21]} 4. O-O {[%emt 0:00:46]} Nf6 {[%emt 0:00:13]} 5. d3 {[%emt 0:00:44]} d6 {[%emt 0:00:24]} 6. Nc3 {[%emt 0:00:23]} Nd4 {[%emt 0:00:20]} 7. Bg5 {[%emt 0:01:24]} O-O {[%emt 0:00:33]} 8. Nd5 {[%emt 0:00:31]} c6 {[%emt 0:01:15]} 9. Nxf6+ {[%emt 0:00:48]} gxf6 {[%emt 0:01:54]} 10. Bh6 {[%emt 0:00:24]} Re8 {[%emt 0:00:25]} 11. Nxd4 {[%emt 0:01:58]} Bxd4 {[%emt 0:00:24]} 12. Qh5 {[%emt 0:00:49]} f5 {[%emt 0:01:51]} 13. Qxf7+ {[%emt 0:00:38]} Kh8 {[%emt 0:00:39]} 1-0